bitfinex-derivatives/quotes_ETHF0:USTF0_20250317
["timestamp","ask_amount","ask_price","bid_price","bid_amount"]
[1742226455335,1.04441,1915.1,1915.0,6.4142]
[1742226455537,1.04441,1915.1,1915.0,5.7008]
[1742226455733,1.3309,1915.2,1914.7,1.758]
[1742226455936,1.3309,1915.2,1914.8,1.4143]
[1742226456136,1.3309,1915.2,1915.1,1.04441]
[1742226456442,40.8,1915.3,1915.1,1.04439]
[1742226456637,40.80782513,1915.3,1915.1,1.04439]
[1742226456837,41.85212513,1915.3,1915.2,1.4401]
[1742226457144,1.05212513,1915.3,1915.2,1.4401]
[1742226457541,1.04441,1915.1,1915.0,4.92774]
[1742226457741,1.04441,1915.1,1915.0,1.4401]
[1742226457943,1.04452,1914.9,1914.8,8.32334114]
[1742226458143,1.04452,1914.9,1914.8,9.08794114]
[1742226458539,1.04452,1914.9,1914.8,3.57082513]
[1742226458837,1.04452,1914.9,1914.8,5.01092513]
[1742226460233,1.74071,1915.0,1914.8,5.01092513]
[1742226460437,1.74071,1915.0,1914.9,1.4096]
[1742226461645,1.04451,1915.0,1914.9,1.4096]
[1742226461949,1.04451,1915.0,1914.9,2.0826]
[1742226462533,1.04446,1915.0,1914.9,2.0826]
[1742226463337,1.71421,1915.1,1914.9,3.12707]
[1742226463543,1.71421,1915.1,1915.0,1.3718]
[1742226463843,1.04452,1914.9,1914.8,4.61537513]
[1742226464651,1.04452,1914.9,1914.8,3.57082513]
[1742226465051,1.04452,1914.9,1914.8,4.94262513]
[1742226465249,1.04452,1914.9,1914.8,1.37962513]
[1742226465551,1.04452,1914.9,1914.8,2.42419513]
[1742226466453,1.04452,1914.9,1914.8,1.37962513]
[1742226467349,1.04452,1914.9,1914.8,2.42419513]
[1742226467553,1.04452,1914.9,1914.8,1.37962513]
[1742226470149,2.399,1915.0,1914.8,1.37962513]
[1742226470349,2.399,1915.0,1914.9,1.04452]
[1742226470655,1.04452,1914.9,1914.8,2.42415513]
[1742226471752,1.04452,1914.9,1914.8,5.98815513]
[1742226472051,1.04452,1914.9,1914.8,4.94362513]
[1742226472244,1.04452,1914.9,1914.8,5.98819513]
[1742226472444,1.04452,1915.0,1914.9,1.0445]
[1742226472759,0.6698,1915.1,1915.0,1.04446]
[1742226472943,0.6698,1915.1,1914.9,1.4223]
[1742226472944,1.70181,1915.2,1915.1,1.04441]
[1742226473253,3.21562513,1915.3,1914.9,2.0812]
[1742226473448,1.04441,1915.1,1915.0,1.4223]
[1742226474952,1.04441,1915.1,1915.0,2.46676]
[1742226475150,1.04438,1915.2,1915.1,1.04438]
[1742226475351,0.00782513,1915.3,1915.2,1.04436]
[1742226475651,0.00782513,1915.3,1915.2,5.99176]
[1742226477853,0.00782513,1915.3,1915.2,4.9474]
[1742226477854,1.05212513,1915.3,1915.2,4.9474]
[1742226478057,1.05212513,1915.3,1915.2,5.99176]
[1742226478058,0.00782513,1915.3,1915.2,5.99176]
[1742226478560,1.05212513,1915.3,1915.2,5.99176]
[1742226478753,0.00782513,1915.3,1915.2,5.99176]
[1742226479757,0.00782513,1915.3,1915.2,10.06877601]
[1742226482065,42.50026,1915.8,1915.3,2.61073]
[1742226482261,1.04413,1915.7,1915.4,8.8911]
[1742226482567,1.04413,1915.7,1915.5,2.1484]
[1742226482868,1.70007,1915.8,1915.6,4.9894]
[1742226483057,1.70789513,1915.8,1915.7,1.4264]
[1742226483464,0.00782513,1915.8,1915.7,2.47048]
[1742226483760,1.05185513,1915.8,1915.7,2.47048]
[1742226483960,1.31512513,1915.8,1915.7,2.47048]
[1742226484662,1.05185513,1915.8,1915.7,1.4264]
[1742226484857,1.31512513,1915.8,1915.7,2.47048]
[1742226485259,2.35915513,1915.8,1915.7,2.47048]
[1742226485462,2.35915513,1915.8,1915.7,1.4264]
[1742226485662,1.31512513,1915.8,1915.7,2.47048]
[1742226485863,0.00782513,1915.8,1915.7,2.47048]
[1742226486061,2.43558,1916.3,1915.8,2.61004]
[1742226486253,3.74287,1916.3,1916.1,1.04382]
[1742226486453,0.6751,1916.3,1916.2,1.04381]
[1742226486757,1.322,1916.5,1916.4,1.0437]
[1742226487059,1.322,1916.5,1916.4,4.6057]
[1742226487472,1.3526,1916.7,1916.4,3.562]
[1742226487664,1.322,1916.6,1916.5,1.04362]
[1742226487967,1.322,1916.6,1916.4,4.2532]
[1742226487968,2.36559,1916.6,1916.4,6.02168]
[1742226488165,1.322,1916.6,1916.5,1.04365]
[1742226488464,2.36563,1916.6,1916.4,6.02168]
[1742226488666,1.322,1916.6,1916.4,6.02168]
[1742226488964,1.322,1916.5,1916.4,6.02168]
[1742226489458,2.36565,1916.5,1916.4,6.02168]
[1742226489766,1.322,1916.5,1916.4,6.02168]
[1742226490165,2.39618,1916.7,1916.4,4.978]
[1742226490467,1.3701,1916.5,1916.4,6.0217]
[1742226490656,2.39618,1916.7,1916.6,1.04359]
[1742226490861,1.3701,1916.6,1916.5,1.04362]
[1742226491265,1.3701,1916.6,1916.4,4.978]
[1742226491266,2.41369,1916.6,1916.4,6.02167]
[1742226491760,2.41375,1916.5,1916.4,0.6912]
[1742226491963,2.41375,1916.5,1916.4,3.561]
[1742226492159,1.0437,1916.4,1916.3,4.08484114]
[1742226492358,2.4138,1916.4,1916.3,4.08484114]
[1742226492667,2.4138,1916.4,1916.3,0.00782513]
[1742226493466,1.04387,1916.1,1916.0,3.561]
[1742226493658,1.04392,1916.0,1915.8,3.561]
[1742226493853,2.36922,1916.0,1915.9,1.04397]
[1742226495566,1.3253,1916.0,1915.9,1.04397]
[1742226495771,2.36922,1916.0,1915.9,1.04397]
[1742226496060,0.00782513,1916.1,1916.0,1.04392]
[1742226496663,1.04397,1915.9,1915.8,0.00782513]
[1742226497264,1.71477,1915.9,1915.8,0.00782513]
[1742226497657,0.6708,1915.9,1915.8,1.05185513]
[1742226498059,1.9812,1915.9,1915.8,1.05185513]
[1742226498460,1.3104,1915.9,1915.8,1.05185513]
[1742226498668,2.35437,1915.9,1915.8,1.05185513]
[1742226498870,1.3104,1915.9,1915.8,1.05185513]
[1742226499065,3.21562513,1916.1,1915.8,0.00782513]
[1742226499261,1.4419,1916.0,1915.9,1.04397]
[1742226499461,1.4419,1916.0,1915.9,4.60497]
[1742226499862,2.48582,1916.0,1915.9,3.561]
[1742226500663,1.04397,1915.9,1915.8,0.00782513]
[1742226500865,1.4419,1915.9,1915.8,1.05185513]
[1742226502270,1.05170513,1916.1,1916.0,1.04392]
[1742226502570,1.39802513,1916.1,1916.0,1.04392]
[1742226502772,1.04392,1916.0,1915.9,3.56]
[1742226503980,1.04392,1916.0,1915.9,4.60397]
[1742226504871,1.39802513,1916.1,1916.0,1.04392]
[1742226505170,2.44190513,1916.1,1916.0,1.3436]
[1742226505372,1.39802513,1916.1,1916.0,2.38752]
[1742226505871,2.44189513,1916.1,1916.0,1.3436]
[1742226506666,1.04392,1916.0,1915.9,3.56]
[1742226506874,2.38942,1916.0,1915.9,3.56]
[1742226507571,2.38942,1916.0,1915.9,4.60397]
[1742226509170,2.38942,1916.0,1915.9,3.56]
[1742226509375,1.3455,1916.0,1915.9,4.60397]
[1742226509975,2.38942,1916.0,1915.9,4.60397]
[1742226510171,1.3455,1916.0,1915.9,4.60397]
[1742226510375,1.3455,1916.0,1915.9,5.32637]
[1742226510879,2.38942,1916.0,1915.9,3.56]
[1742226511482,1.3455,1916.0,1915.9,6.02767]
[1742226511669,1.3455,1916.0,1915.9,6.70547]
[1742226512183,1.05171513,1916.1,1916.0,1.04392]
[1742226512480,1.40282513,1916.1,1916.0,2.46762]
[1742226512681,2.44669513,1916.1,1916.0,2.46762]
[1742226513082,2.44669513,1916.1,1916.0,1.4237]
[1742226513285,1.04392,1916.0,1915.9,4.60397]
[1742226513485,2.43892,1916.0,1915.9,6.02767]
[1742226515784,0.00782513,1916.1,1916.0,1.04392]
[1742226515980,1.37942513,1916.1,1916.0,3.10722]
[1742226516183,0.00782513,1916.1,1916.0,3.10722]
[1742226520388,2.37029513,1916.1,1916.0,1.402]
[1742226520688,3.08949513,1916.1,1916.0,1.402]
[1742226520894,1.04397,1916.0,1915.9,1.3289]
[1742226521182,1.04397,1915.9,1915.8,0.00782513]
[1742226521374,2.6101,1915.8,1915.2,3.2078]
[1742226521576,1.0443,1915.3,1915.2,4.5367]
[1742226521782,3.2078,1915.3,1915.0,0.6539]
[1742226521993,1.04446,1915.0,1914.9,4.8879]
[1742226524586,1.4086,1914.5,1914.4,4.60379]
[1742226525293,4.28702513,1915.2,1914.5,2.61185]
[1742226525490,1.04452,1914.9,1914.8,1.04456]
[1742226525686,1.04451,1915.0,1914.8,1.04456]
[1742226525887,1.4086,1914.9,1914.8,1.04456]
[1742226526091,0.72702513,1915.2,1914.8,3.56]
[1742226526286,1.3849,1915.1,1915.0,1.04446]
[1742226526481,0.00782513,1915.2,1915.1,1.04441]
[1742226526789,0.00782513,1915.2,1915.1,2.41101]
[1742226528600,1.3849,1915.6,1915.2,2.61088]
[1742226528789,1.3849,1915.6,1915.5,1.04419]
[1742226528985,1.3849,1915.6,1915.5,4.60419]
[1742226530196,1.3849,1915.6,1915.5,5.95179]
[1742226530794,0.00782513,1915.7,1915.6,1.04414]
[1742226532395,0.6751,1916.3,1915.6,3.2078]
[1742226532590,1.4011,1916.2,1916.1,1.04387]
[1742226532801,0.7,1916.5,1916.4,1.0437]
[1742226533101,1.74365,1916.5,1916.3,4.60272]
[1742226534295,2.4448,1916.4,1916.3,5.91952]
[1742226534801,1.4011,1916.4,1916.3,5.91952]
[1742226535300,2.4448,1916.4,1916.3,3.559]
[1742226535994,1.04379,1916.3,1916.1,3.17215]
[1742226536203,1.3412,1916.2,1916.1,6.03255]
[1742226537199,2.38501,1916.2,1916.1,3.559]
[1742226538487,1.3412,1916.2,1916.1,4.60287]
[1742226538692,1.3412,1916.2,1916.1,2.36517]
[1742226539400,2.38501,1916.2,1916.1,2.36517]
[1742226539900,1.3412,1916.2,1916.1,2.36517]
[1742226540094,2.38501,1916.2,1916.1,1.3213]
[1742226540396,1.3412,1916.2,1915.8,1.04402]
[1742226543103,0.6873,1916.1,1916.0,2.37832]
[1742226543301,1.73117,1916.1,1916.0,1.3344]
[1742226543505,1.73117,1916.1,1916.0,4.8924]
[1742226544308,1.73117,1916.1,1916.0,5.93632]
[1742226544496,0.6873,1916.1,1916.0,5.93632]
[1742226545101,1.73117,1916.1,1916.0,5.93632]
[1742226545404,0.6873,1916.1,1916.0,5.93632]
[1742226545807,2.0903,1916.1,1916.0,5.93632]
[1742226546203,3.13417,1916.1,1916.0,5.93632]
[1742226547006,3.13417,1916.1,1916.0,4.8924]
[1742226547703,2.0903,1916.1,1916.0,5.93632]
[1742226548004,1.403,1916.1,1916.0,5.93632]
[1742226548201,2.44687,1916.1,1916.0,5.93632]
[1742226548706,2.44687,1916.1,1916.0,4.8924]
[1742226549200,2.44687,1916.1,1916.0,1.3344]
[1742226549402,1.403,1916.1,1915.6,35.48493]
[1742226549604,1.044,1915.9,1915.8,1.04401]
[1742226549804,1.044,1915.9,1915.8,4.60201]
[1742226550200,1.04397,1916.0,1915.9,1.04396]
[1742226550397,2.43157,1916.0,1915.9,2.49076]
[1742226550708,1.3876,1916.0,1915.9,2.49076]
[1742226551500,2.43152,1916.0,1915.9,1.4468]
[1742226552103,1.3876,1916.0,1915.9,2.49077]
[1742226552297,2.43152,1916.0,1915.9,1.4468]
[1742226554309,2.43152,1916.0,1915.9,2.49077]
[1742226554813,2.43152,1916.0,1915.9,1.4468]
[1742226555514,1.04398,1915.9,1915.8,4.601]
[1742226555712,1.3298,1915.9,1915.8,5.9213]
[1742226556612,2.37377,1915.9,1915.8,1.3203]
[1742226556805,3.02987,1915.9,1915.8,1.3203]
[1742226557007,1.04408,1915.7,1915.6,30.71091]
[1742226557309,1.04419,1915.5,1915.4,0.00782513]
[1742226557500,1.04442,1915.1,1914.9,4.6406]
[1742226557705,1.04437,1915.2,1915.0,1.04446]
[1742226557905,1.382,1915.1,1915.0,2.42536]
[1742226559011,0.00782513,1915.2,1915.1,1.04441]
[1742226559305,0.00782513,1915.2,1915.1,4.60141]
[1742226560307,1.43112513,1915.2,1915.1,4.60141]
[1742226561307,2.47548513,1915.2,1915.1,3.557]
[1742226561512,1.04446,1915.0,1914.9,4.26010513]
[1742226561708,1.43112513,1915.2,1914.9,8.22122513]
[1742226561914,2.47550513,1915.2,1915.0,1.04444]
[1742226562113,2.47550513,1915.2,1915.1,1.4486]
[1742226562411,1.43112513,1915.2,1915.1,2.49301]
[1742226562611,0.00782513,1915.2,1915.1,9.25781]
[1742226562805,0.00782513,1915.2,1915.1,9.96731]
[1742226563007,4.92551,1915.7,1915.2,2.61088]
[1742226563311,3.8814,1915.7,1915.5,1.04419]
[1742226563504,0.6736,1915.7,1915.6,2.39124]
[1742226563712,0.6736,1915.7,1915.1,9.9173]
[1742226563905,0.6736,1915.7,1915.3,1.3471]
[1742226563906,1.04429,1915.4,1915.3,1.3471]
[1742226564112,1.04429,1915.4,1915.3,4.9051]
[1742226564318,1.04436,1915.2,1915.1,4.2675]
[1742226564515,1.04436,1915.2,1915.1,4.9051]
[1742226564712,1.04436,1915.2,1915.1,5.94951]
[1742226565220,1.04436,1915.2,1915.1,4.9051]
[1742226565417,2.47296,1915.2,1915.1,4.9051]
[1742226566217,0.6736,1915.3,1915.2,1.04436]
[1742226566419,1.4007,1915.4,1915.3,1.0443]
[1742226566721,0.00782513,1915.5,1915.4,1.04425]
[1742226566923,1.40852513,1915.5,1915.4,2.40355]
[1742226567623,0.00782513,1915.5,1915.4,2.40355]
[1742226567820,0.00782513,1915.5,1915.4,3.07015]
[1742226569522,1.31652513,1915.5,1915.4,3.07015]
[1742226569723,1.31652513,1915.5,1915.4,6.62715]
[1742226569927,2.36071513,1915.5,1915.4,6.62715]
[1742226570130,1.04425,1915.4,1915.1,3.2078]
[1742226570328,2.35303,1915.3,1915.2,4.9468]
[1742226570831,2.35303,1915.3,1915.2,1.3898]
[1742226571833,1.04436,1915.2,1915.1,4.60141]
[1742226572129,2.45566,1915.2,1915.1,5.94901]
[1742226572329,1.4113,1915.2,1915.1,5.94901]
[1742226573430,1.05203513,1915.5,1915.1,9.15681]
[1742226573625,2.46333513,1915.5,1915.3,1.04425]
[1742226573831,2.46333513,1915.5,1915.4,2.39185]
[1742226574133,2.46333513,1915.5,1915.4,1.3476]
[1742226574631,1.04441,1915.1,1915.0,0.6827]
[1742226574830,1.04441,1915.1,1915.0,2.0795]
[1742226575229,1.04441,1915.1,1915.0,3.12396]
[1742226575534,3.78319,1915.2,1915.1,1.04441]
[1742226575828,3.78319,1915.2,1915.1,2.44121]
[1742226575829,2.0711,1915.2,1915.1,2.44121]
[1742226576030,1.71197,1915.4,1915.3,1.0443]
[1742226576330,1.04427,1915.4,1915.3,1.04429]
[1742226576533,1.3574,1915.4,1915.3,1.04429]
[1742226576733,0.00782513,1915.5,1915.4,1.04425]
[1742226576931,0.00782513,1915.5,1915.4,4.60125]
[1742226577630,1.05201513,1915.5,1915.4,3.557]
[1742226577830,2.39921513,1915.5,1915.4,3.557]
[1742226578031,1.04425,1915.4,1915.3,2.4411]
[1742226578229,2.39145,1915.4,1915.3,2.4411]
[1742226578733,2.39145,1915.4,1915.3,1.3968]
[1742226578933,1.0443,1915.3,1915.2,3.557]
[1742226579130,2.3915,1915.3,1915.2,3.557]
[1742226579432,2.3915,1915.3,1915.2,4.9169]
[1742226579633,3.93332513,1915.5,1915.2,4.9169]
[1742226579827,2.39146,1915.4,1915.3,2.40418]
[1742226580136,1.3472,1915.4,1915.3,2.40418]
[1742226580330,3.93332513,1915.5,1915.4,1.04425]
[1742226580635,0.00782513,1915.5,1915.4,2.40415]
[1742226581031,0.00782513,1915.5,1915.4,5.96115]
[1742226583639,0.00782513,1915.5,1915.4,11.96115]
[1742226583836,1.3182,1915.8,1915.7,1.04408]
[1742226584036,1.3627,1916.0,1915.7,3.557]
[1742226584235,1.3627,1916.0,1915.9,1.04397]
[1742226584735,2.1062,1916.0,1915.9,1.04397]
[1742226584937,3.2078,1916.2,1916.1,1.04387]
[1742226585331,4.25161,1916.2,1916.0,1.04388]
[1742226585528,4.6165,1916.2,1916.1,2.47397]
[1742226586432,1.4087,1916.2,1916.1,2.47397]
[1742226586632,1.4087,1916.2,1916.1,6.03097]
[1742226587748,2.45251,1916.2,1916.1,4.9871]
[1742226588733,2.45251,1916.2,1916.1,3.557]
[1742226588933,1.04387,1916.1,1916.0,0.00782513]
[1742226589134,2.43087,1916.1,1916.0,0.00782513]
[1742226589440,2.43087,1916.1,1916.0,1.05174513]
[1742226589635,2.43087,1916.1,1916.0,2.41624513]
[1742226590441,2.43087,1916.1,1916.0,1.37232513]
[1742226590640,2.43087,1916.1,1916.0,0.00782513]
[1742226590843,5.63867,1916.1,1916.0,0.00782513]
[1742226591341,5.63867,1916.1,1915.5,28.958]
[1742226591342,1.04414,1915.6,1915.5,28.958]
[1742226591540,3.2078,1915.9,1915.5,3.556]
[1742226591842,4.5386,1915.9,1915.5,4.9618]
[1742226592041,1.3308,1915.8,1915.7,1.04407]
[1742226592243,1.3308,1915.8,1915.7,4.60007]
[1742226592840,0.00782513,1915.9,1915.7,4.60007]
[1742226592841,0.00782513,1915.9,1915.8,1.04403]
[1742226593047,0.00782513,1915.9,1915.8,2.39813]
[1742226594135,4.92429,1916.3,1916.2,1.04381]
[1742226594340,3.8805,1916.3,1916.2,1.04381]
[1742226594537,4.92428,1916.3,1916.1,4.59983]
[1742226594738,3.2078,1916.3,1916.2,1.04381]
[1742226595346,4.613,1916.3,1916.2,2.39791]
[1742226595742,42.51635,1916.6,1916.2,4.68373]
[1742226595947,1.4052,1916.5,1916.4,1.04367]
[1742226596145,1.4052,1916.5,1916.4,2.45797]
[1742226596439,2.44885,1916.5,1916.4,1.4143]
[1742226596746,2.44885,1916.5,1916.4,2.458]
[1742226598148,2.44885,1916.5,1916.4,1.4143]
[1742226598350,1.0437,1916.4,1916.3,4.59972]
[1742226598549,2.4466,1916.4,1916.3,4.59972]
[1742226598946,2.4466,1916.4,1916.3,3.556]
[1742226599339,1.04376,1916.3,1916.2,1.04381]
[1742226599643,1.04381,1916.2,1916.1,5.90903]
[1742226599843,1.75561,1916.2,1916.1,5.90903]
[1742226600044,1.04387,1916.1,1916.0,4.59888]
[1742226600247,1.3969,1916.1,1915.7,32.1598]
[1742226600447,1.04403,1915.9,1915.8,4.59901]
[1742226600753,1.04397,1915.9,1915.8,5.9082]
[1742226601143,2.44086,1916.0,1915.9,1.04397]
[1742226601344,2.44086,1916.0,1915.9,2.35317]
[1742226602054,2.44086,1916.0,1915.9,1.3092]
[1742226602649,4.00671,1916.0,1915.7,3.2078]
[1742226602848,1.3268,1915.9,1915.6,3.56282513]
[1742226603155,4.25188,1915.7,1915.6,0.00782513]
[1742226603653,1.04418,1915.6,1915.3,3.555]
[1742226603842,2.37098,1915.6,1915.5,1.04418]
[1742226604052,2.37096,1915.6,1915.5,1.04419]
[1742226604249,1.04419,1915.5,1915.4,1.4318]
[1742226604444,1.3268,1915.5,1915.4,2.47602]
[1742226604649,4.25193,1915.7,1915.6,1.04414]
[1742226604650,3.2078,1915.7,1915.6,1.04414]
[1742226604845,4.25175,1916.0,1915.5,6.85665]
[1742226605046,0.00782513,1915.8,1915.6,3.2078]
[1742226605247,0.00782513,1915.8,1915.7,4.59908]
[1742226605756,1.3471,1916.2,1916.1,1.04387]
[1742226605949,1.3471,1916.2,1916.1,4.59887]
[1742226606151,0.7222,1916.3,1916.1,6.7628]
[1742226606152,1.04378,1916.3,1916.1,6.7628]
[1742226606357,1.3471,1916.3,1916.2,2.49391]
[1742226606949,2.39086,1916.3,1916.2,2.49391]
[1742226607256,1.3471,1916.3,1916.2,2.49391]
[1742226607454,5.59866,1916.3,1916.2,1.4501]
[1742226607655,1.04381,1916.2,1916.1,4.59887]
[1742226607855,2.0693,1916.2,1916.1,4.59887]
[1742226608557,1.73493,1916.4,1916.3,1.04376]
[1742226608558,0.6726,1916.4,1916.3,1.04376]
[1742226608854,1.9971,1916.4,1916.3,1.04376]
[1742226609356,1.3245,1916.4,1916.3,4.59876]
[1742226609556,1.3245,1916.4,1916.3,5.30906]
[1742226610350,1.04362,1916.6,1916.5,1.04365]
[1742226610551,1.3245,1916.6,1916.5,1.04365]
[1742226610955,1.3245,1916.6,1916.5,4.59865]
[1742226611159,1.7297,1916.8,1916.6,1.04359]
[1742226611454,1.7297,1916.8,1916.7,1.4324]
[1742226611854,0.6943,1917.0,1916.9,1.04343]
[1742226612057,0.6943,1917.0,1916.9,4.59843]
[1742226612462,1.72957,1917.2,1917.1,1.04332]
[1742226612753,1.72957,1917.2,1917.0,1.4324]
[1742226612958,1.04332,1917.1,1917.0,1.4324]
[1742226613657,1.04338,1917.0,1916.9,3.555]
[1742226613859,1.04338,1917.0,1916.9,4.9874]
[1742226614360,1.04348,1916.8,1916.7,3.555]
[1742226614862,1.04359,1916.6,1916.4,2.40710513]
[1742226615155,1.04359,1916.6,1916.5,1.3863]
[1742226615751,0.6617,1916.7,1916.5,2.42995]
[1742226615949,1.04359,1916.6,1916.5,1.3863]
[1742226616257,1.70526,1916.7,1916.5,1.3863]
[1742226616459,3.2078,1916.8,1916.6,1.04359]
[1742226616460,4.25132,1916.8,1916.6,1.04359]
[1742226616656,1.04352,1916.8,1916.7,2.42984]
[1742226616857,1.04348,1916.8,1916.7,2.42984]
[1742226617057,0.667,1916.9,1916.7,1.3863]
[1742226617258,1.04348,1916.8,1916.7,1.3863]
[1742226618062,0.667,1916.9,1916.5,3.554]
[1742226618063,1.04359,1916.6,1916.5,3.554]
[1742226618254,1.04359,1916.6,1916.5,4.9997]
[1742226618768,1.04359,1916.7,1916.5,6.04335]
[1742226618958,1.04359,1916.6,1916.5,6.04335]
[1742226619262,1.04359,1916.6,1916.5,1.4457]
[1742226619465,1.04359,1916.6,1916.5,6.04335]
[1742226619668,1.04357,1916.7,1916.5,6.04335]
[1742226619863,1.04357,1916.7,1916.6,1.4457]
[1742226621462,1.04357,1916.7,1916.5,3.554]
[1742226621668,1.04359,1916.6,1916.5,3.554]
[1742226621868,1.04359,1916.6,1916.5,4.9072]
[1742226622463,1.04365,1916.5,1916.4,0.68382513]
[1742226622763,1.04365,1916.5,1916.4,1.36102513]
[1742226623062,1.04365,1916.5,1916.3,3.554]
[1742226623063,1.04387,1916.1,1916.0,3.554]
[1742226623270,1.04393,1916.0,1915.8,5.9512]
[1742226623566,1.04393,1916.0,1915.9,1.4418]
[1742226624069,1.04395,1916.0,1915.8,1.04403]
[1742226624263,1.04395,1916.0,1915.9,1.4418]
[1742226624669,2.47995,1916.0,1915.9,1.4418]
[1742226625772,2.47995,1916.0,1915.9,2.48577]
[1742226626068,2.47995,1916.0,1915.9,1.4418]
[1742226626475,2.47995,1916.0,1915.9,2.48577]
[1742226626765,1.436,1916.0,1915.9,2.48577]
[1742226626970,0.00782513,1916.1,1916.0,1.04392]
[1742226627171,0.00782513,1916.1,1916.0,2.36982]
[1742226628867,3.2078,1916.6,1916.4,1.0437]
[1742226628868,1.3429,1916.5,1916.4,1.0437]
[1742226629078,2.38658,1916.5,1916.3,4.59773]
[1742226629265,2.38658,1916.5,1916.4,1.3259]
[1742226629571,1.04368,1916.5,1916.4,1.3259]
[1742226630365,1.0437,1916.4,1916.3,3.554]
[1742226630566,1.0437,1916.4,1916.3,4.9853]
[1742226631372,11.08689,1917.1,1916.3,4.9853]
[1742226631373,5.87,1917.1,1916.3,7.59464]
[1742226631570,0.01906,1917.2,1916.8,2.60872]
[1742226631771,0.01906,1917.2,1917.1,1.04332]
[1742226631977,0.01906,1917.2,1917.1,7.80512]
[1742226632669,1.06233,1917.2,1917.1,1.4313]
[1742226632874,1.04338,1917.0,1916.9,6.6858]
[1742226633071,1.04338,1917.0,1916.9,8.0847]
[1742226633272,4.25118,1917.0,1916.9,8.0847]
[1742226633576,4.25118,1917.0,1916.9,7.3989]
[1742226633785,4.25118,1917.0,1916.8,3.56182513]
[1742226633786,1.04343,1916.9,1916.8,3.56182513]
[1742226633975,1.04343,1916.9,1916.8,0.00782513]
[1742226634481,0.6822,1917.0,1916.9,1.04343]
[1742226634882,0.01906,1917.2,1916.9,7.56048]
[1742226635072,0.01906,1917.2,1917.1,1.04332]
[1742226635982,0.01906,1917.2,1917.1,4.59632]
[1742226636180,0.717,1917.6,1917.4,1.0431]
[1742226636375,1.76006,1917.6,1917.4,1.0431]
[1742226636573,42.56006,1917.6,1917.4,1.0431]
[1742226636778,1.0431,1917.5,1917.4,1.0431]
[1742226636981,42.56008,1917.6,1917.4,1.0431]
[1742226637278,41.517,1917.6,1917.4,1.04316]
[1742226637466,45.76787,1917.6,1917.4,1.04316]
[1742226637677,1.0431,1917.5,1917.3,3.553]
[1742226637875,1.04316,1917.4,1917.3,3.553]
[1742226638082,44.7248,1917.6,1917.3,3.553]
[1742226638378,1.04316,1917.4,1917.3,1.04319]
[1742226638571,1.04316,1917.4,1917.1,3.553]
[1742226638572,47.33248,1917.6,1917.1,3.553]
[1742226638778,0.656,1917.3,1917.2,1.04324]
[1742226639076,0.656,1917.3,1917.2,2.44994]
[1742226639284,0.656,1917.3,1917.2,1.4067]
[1742226639579,1.04312,1917.5,1917.2,2.44997]
[1742226639875,1.04312,1917.5,1917.2,3.15967]
[1742226640082,1.04316,1917.4,1917.3,1.4067]
[1742226640275,1.04316,1917.4,1917.2,0.7097]
[1742226640480,1.04316,1917.4,1917.3,1.4067]
[1742226640678,0.656,1917.5,1917.1,3.553]
[1742226640976,1.04335,1917.1,1916.9,6.7097]
[1742226641176,1.04335,1917.1,1916.9,1.4067]
[1742226641376,1.04338,1917.0,1916.9,1.4067]
[1742226641585,9.36872,1917.4,1916.9,1.4067]
[1742226641770,1.04334,1917.1,1916.9,2.45011]
[1742226641976,1.04333,1917.1,1916.9,2.45011]
[1742226642170,1.04343,1916.9,1916.8,0.00782513]
[1742226642686,3.62981321,1916.9,1916.8,0.00782513]
[1742226643386,3.62981321,1916.9,1916.3,28.945]
[1742226643387,1.0437,1916.4,1916.3,28.945]
[1742226643683,1.04376,1916.3,1916.2,1.3801]
[1742226644280,1.4201,1916.5,1916.2,1.3801]
[1742226644482,1.04376,1916.3,1916.2,1.3801]
[1742226644688,1.04376,1916.3,1916.2,1.38792513]
[1742226645373,2.37126,1916.3,1916.2,1.38792513]
[1742226645578,2.37126,1916.3,1916.2,0.00782513]
[1742226646176,44.0078,1916.4,1916.2,0.00782513]
[1742226646382,0.00782513,1916.5,1916.4,1.0437]
[1742226646578,1.3275,1916.7,1916.6,1.04359]
[1742226646779,1.4422,1917.0,1916.9,1.04343]
[1742226646982,1.04339,1917.0,1916.9,1.04341]
[1742226647182,4.25116,1917.1,1916.7,7.55364]
[1742226647487,4.25117,1917.1,1916.9,1.04339]
[1742226647689,4.25117,1917.1,1917.0,1.3918]
[1742226648181,4.25117,1917.1,1916.7,1.04354]
[1742226648182,1.04353,1916.8,1916.7,1.04354]
[1742226648803,1.04353,1916.8,1916.7,2.48224]
[1742226648989,1.04353,1916.8,1916.7,1.4387]
[1742226649690,1.04359,1916.6,1916.5,3.553]
[1742226649986,1.04359,1916.6,1916.5,1.4387]
[1742226650782,6.7608,1916.6,1916.0,5.81757]
[1742226650979,1.04374,1916.4,1916.3,1.04375]
[1742226651384,2.43319,1916.5,1916.4,1.0437]
[1742226651580,1.04371,1916.4,1916.3,1.04373]
[1742226651991,1.04371,1916.4,1916.3,1.4275]
[1742226652185,1.04376,1916.3,1916.2,0.00782513]
[1742226652783,3.12486,1916.3,1916.2,0.00782513]
[1742226652993,3.81126,1916.3,1916.2,0.00782513]
[1742226653384,3.89767186,1916.3,1916.2,0.00782513]
[1742226653584,1.04387,1916.1,1916.0,1.4275]
[1742226654194,2.42187,1916.1,1916.0,1.4275]
[1742226655491,2.42187,1916.1,1916.0,2.47142]
[1742226655692,1.04387,1916.1,1916.0,2.47142]